[Event "Wuerttemberg Rapid Teams 2024"]
[Site "B?blingen, Germany"]
[Date "2024.04.13"]
[Round "9.1"]
[White "Peng, Xiang-Tobias"]
[Black "Koelle, Tobias"]
[Result "1/2-1/2"]
[ECO "D36"]
[WhiteElo "2187"]
[BlackElo "2467"]
[Annotator "RC"]
[PlyCount "82"]
[EventDate "2024.04.13"]
[EventType "team-tourn"]
[SourceTitle "playchess.com"]
[Source "ChessBase"]
[SourceQuality "1"]
[TimeControl "900+5"]

1. d4 {[%emt 0:00:02]} Nf6 {[%emt 0:00:00]} 2. c4 {[%emt 0:00:01]} e6 {[%emt 0:00:01]} 3. Nf3 {[%emt 0:00:01]} d5 {[%emt 0:00:03]} 4. Nc3 {[%emt 0:00:02]} c6 {[%emt 0:00:00]} 5. Bg5 {[%emt 0:00:01]} Be7 {[%emt 0:00:01]} 6. e3 {[%emt 0:00:01]} Nbd7 {[%emt 0:00:02]} 7. Qc2 {[%emt 0:00:01]} O-O {[%emt 0:00:08]} 8. cxd5 {[%emt 0:00:02]} exd5 {[%emt 0:00:04]} 9. Bd3 {[%emt 0:00:02]} h6 {[%emt 0:00:12]} 10. Bh4 {[%emt 0:00:04]} b6 {[%emt 0:00:33]} 11. O-O {[%emt 0:00:08]} Bb7 {[%emt 0:00:02]} 12. Bf5 {[%emt 0:00:51]} Nh5 {[%emt 0:00:16]} 13. Bxe7 {[%emt 0:00:12]} Qxe7 {[%emt 0:00:01]} 14. Rad1 {[%emt 0:00:19]} Rfe8 {[%emt 0:01:23]} 15. Rfe1 {[%emt 0:00:11]} Nf8 {[%emt 0:00:20]} 16. e4 {[%emt 0:00:55]} dxe4 {[%emt 0:00:22]} 17. Bxe4 {[%emt 0:00:08]} Qf6 {[%emt 0:00:16]} 18. Ne5 {[%emt 0:00:18]} Rab8 {[%emt 0:02:49]} 19. Qe2 {[%emt 0:02:00]} Nf4 {[%emt 0:00:06]} 20. Qf3 {[%emt 0:00:01]} Ba8 {[%emt 0:03:48]} 21. Kh1 {[%emt 0:02:20]} Rbd8 {[%emt 0:01:12]} 22. g3 {[%emt 0:00:27]} Nd5 {[%emt 0:00:06]} 23. Bxd5 {[%emt 0:00:04]} cxd5 {[%emt 0:00:05]} 24. Qxf6 {[%emt 0:00:01]} gxf6 {[%emt 0:00:01]} 25. Ng4 {[%emt 0:00:01]} Kg7 {[%emt 0:00:05]} 26. Ne3 {[%emt 0:00:06]} Kg6 {[%emt 0:00:26]} 27. Kg2 {[%emt 0:00:05]} Ne6 {[%emt 0:00:07]} 28. f4 {[%emt 0:00:26]} Ng7 {[%emt 0:00:01]} 29. Kf3 {[%emt 0:00:22]} h5 {[%emt 0:00:01]} 30. Rc1 {[%emt 0:00:28]} Bc6 {[%emt 0:00:21]} 31. Re2 {[%emt 0:01:15]} Re6 {[%emt 0:00:35]} 32. h3 {[%emt 0:00:58]} Rde8 {[%emt 0:00:15]} 33. g4 {[%emt 0:00:08]} hxg4+ {[%emt 0:00:01]} 34. hxg4 {[%emt 0:00:01]} f5 {[%emt 0:00:12]} 35. Rg1 {[%emt 0:01:40]} fxg4+ {[%emt 0:00:51]} 36. Rxg4+ {[%emt 0:00:06]} Kh7 {[%emt 0:00:07]} 37. Rh2+ {[%emt 0:01:13]} Kg8 {[%emt 0:00:01]} 38. Ncd1 {[%emt 0:00:42]} Rg6 {[%emt 0:00:47]} 39. Rgh4 {[%emt 0:00:10]} Kf8 {[%emt 0:00:18]} 40. Nf2 {[%emt 0:00:16]} Rxe3+ {[%emt 0:00:03]} 41. Kxe3 {[%emt 0:00:01]} Ne6 {[%emt 0:00:47]} 1/2-1/2

[Event "Wuerttemberg Rapid Teams 2024"]
[Site "B?blingen, Germany"]
[Date "2024.04.13"]
[Round "9.2"]
[White "Ramirez Marin, Ivan"]
[Black "Deuer, Marius"]
[Result "0-1"]
[ECO "D35"]
[WhiteElo "2271"]
[BlackElo "2439"]
[Annotator "RC"]
[PlyCount "92"]
[EventDate "2024.04.13"]
[EventType "team-tourn"]
[SourceTitle "playchess.com"]
[Source "ChessBase"]
[SourceQuality "1"]
[TimeControl "900+5"]

1. d4 {[%emt 0:00:01]} Nf6 {[%emt 0:00:01]} 2. c4 {[%emt 0:00:01]} e6 {[%emt 0:00:01]} 3. Nc3 {[%emt 0:00:00]} d5 {[%emt 0:00:03]} 4. cxd5 {[%emt 0:00:01]} Nxd5 {[%emt 0:00:01]} 5. e4 {[%emt 0:00:01]} Nxc3 {[%emt 0:00:02]} 6. bxc3 {[%emt 0:00:01]} c5 {[%emt 0:00:02]} 7. Rb1 {[%emt 0:00:01]} Be7 {[%emt 0:00:04]} 8. Nf3 {[%emt 0:00:02]} O-O {[%emt 0:00:03]} 9. h4 {[%emt 0:00:04]} cxd4 {[%emt 0:00:07]} 10. cxd4 {[%emt 0:00:01]} b6 {[%emt 0:00:16]} 11. h5 {[%emt 0:00:05]} h6 {[%emt 0:00:04]} 12. a3 {[%emt 0:00:02]} Bb7 {[%emt 0:00:35]} 13. Bd3 {[%emt 0:00:06]} Nd7 {[%emt 0:00:07]} 14. Bb2 {[%emt 0:00:45]} e5 {[%emt 0:01:34]} 15. d5 {[%emt 0:00:29]} Bd6 {[%emt 0:00:32]} 16. Nh4 {[%emt 0:00:18]} Nc5 {[%emt 0:01:11]} 17. Bc2 {[%emt 0:01:25]} Bc8 {[%emt 0:00:18]} 18. Qf3 {[%emt 0:01:04]} Qg5 {[%emt 0:02:57]} 19. Bc1 {[%emt 0:00:52]} Qg4 {[%emt 0:00:01]} 20. Qxg4 {[%emt 0:00:45]} Bxg4 {[%emt 0:00:02]} 21. f3 {[%emt 0:00:01]} Bd7 {[%emt 0:00:05]} 22. g4 {[%emt 0:00:20]} Rfc8 {[%emt 0:01:05]} 23. g5 {[%emt 0:00:19]} hxg5 {[%emt 0:00:40]} 24. Bxg5 {[%emt 0:00:02]} f6 {[%emt 0:00:14]} 25. Be3 {[%emt 0:00:09]} Kf7 {[%emt 0:00:48]} 26. Kd2 {[%emt 0:00:43]} Nb7 {[%emt 0:00:19]} 27. Rbg1 {[%emt 0:00:27]} Na5 {[%emt 0:02:01]} 28. Bd3 {[%emt 0:00:24]} Nc4+ {[%emt 0:00:40]} 29. Bxc4 {[%emt 0:00:38]} Rxc4 {[%emt 0:00:01]} 30. Rc1 {[%emt 0:01:42]} Rxc1 {[%emt 0:00:12]} 31. Rxc1 {[%emt 0:00:03]} Rh8 {[%emt 0:00:11]} 32. Nf5 {[%emt 0:00:52]} Bxf5 {[%emt 0:00:02]} 33. exf5 {[%emt 0:00:01]} Rxh5 {[%emt 0:00:02]} 34. Rc8 {[%emt 0:00:07]} Rxf5 {[%emt 0:00:39]} 35. Ra8 {[%emt 0:00:01]} Rxf3 {[%emt 0:00:03]} 36. Rxa7+ {[%emt 0:00:01]} Kg6 {[%emt 0:00:01]} 37. Ke2 {[%emt 0:00:22]} e4 {[%emt 0:00:05]} 38. a4 {[%emt 0:00:02]} Rf5 {[%emt 0:00:50]} 39. Bxb6 {[%emt 0:00:26]} Rxd5 {[%emt 0:00:01]} 40. Ke3 {[%emt 0:00:06]} f5 {[%emt 0:00:16]} 41. Bd4 {[%emt 0:00:06]} Bc5 {[%emt 0:00:34]} 42. Bxc5 {[%emt 0:02:14]} Rxc5 {[%emt 0:00:02]} 43. Kf4 {[%emt 0:00:01]} Kh6 {[%emt 0:00:01]} 44. Ra6+ {[%emt 0:00:12]} Kh5 {[%emt 0:00:02]} 45. Rb6 {[%emt 0:00:53]} g5+ {[%emt 0:00:04]} 46. Ke3 {[%emt 0:00:01]} Kg4 {[%emt 0:00:02]} 0-1

[Event "Wuerttemberg Rapid Teams 2024"]
[Site "B?blingen, Germany"]
[Date "2024.04.13"]
[Round "9.3"]
[White "Schnepp, Gunnar"]
[Black "Kocharin, Timur"]
[Result "1-0"]
[ECO "A32"]
[WhiteElo "2233"]
[BlackElo "2250"]
[Annotator "RC"]
[PlyCount "95"]
[EventDate "2024.04.13"]
[EventType "team-tourn"]
[SourceTitle "playchess.com"]
[Source "ChessBase"]
[SourceQuality "1"]
[TimeControl "900+5"]

1. d4 {[%emt 0:00:04]} Nf6 {[%emt 0:00:02]} 2. c4 {[%emt 0:00:02]} e6 {[%emt 0:00:23]} 3. Nf3 {[%emt 0:00:03]} c5 {[%emt 0:00:04]} 4. Nc3 {[%emt 0:00:18]} cxd4 {[%emt 0:01:10]} 5. Nxd4 {[%emt 0:00:07]} b6 {[%emt 0:01:00]} 6. Ndb5 {[%emt 0:01:53]} d6 {[%emt 0:02:11]} 7. Bf4 {[%emt 0:00:10]} e5 {[%emt 0:00:13]} 8. Bg5 {[%emt 0:00:02]} Bb7 {[%emt 0:05:04]} 9. Nd5 {[%emt 0:01:00]} Bxd5 {[%emt 0:01:04]} 10. Bxf6 {[%emt 0:00:03]} gxf6 {[%emt 0:00:07]} 11. cxd5 {[%emt 0:00:13]} a6 {[%emt 0:00:34]} 12. Nc3 {[%emt 0:00:08]} f5 {[%emt 0:00:51]} 13. e3 {[%emt 0:00:10]} Nd7 {[%emt 0:00:11]} 14. Qc2 {[%emt 0:00:48]} Qf6 {[%emt 0:00:24]} 15. Qa4 {[%emt 0:00:08]} Bg7 {[%emt 0:00:33]} 16. Bxa6 {[%emt 0:00:36]} Ke7 {[%emt 0:00:11]} 17. Qc4 {[%emt 0:00:05]} Nc5 {[%emt 0:00:55]} 18. Bb5 {[%emt 0:00:04]} e4 {[%emt 0:00:55]} 19. Qe2 {[%emt 0:00:13]} f4 {[%emt 0:00:21]} 20. exf4 {[%emt 0:00:12]} Qxf4 {[%emt 0:00:01]} 21. g3 {[%emt 0:00:13]} Qe5 {[%emt 0:00:04]} 22. O-O {[%emt 0:00:07]} h5 {[%emt 0:00:07]} 23. Rae1 {[%emt 0:00:12]} f5 {[%emt 0:00:02]} 24. f3 {[%emt 0:00:06]} h4 {[%emt 0:00:08]} 25. fxe4 {[%emt 0:00:09]} hxg3 {[%emt 0:00:10]} 26. exf5 {[%emt 0:00:04]} gxh2+ {[%emt 0:00:17]} 27. Kh1 {[%emt 0:00:03]} Qxe2 {[%emt 0:00:03]} 28. Nxe2 {[%emt 0:00:17]} Kf7 {[%emt 0:00:10]} 29. Nf4 {[%emt 0:00:24]} Rxa2 {[%emt 0:00:04]} 30. b4 {[%emt 0:00:17]} Nb3 {[%emt 0:00:08]} 31. Ng6 {[%emt 0:00:39]} Rh3 {[%emt 0:00:04]} 32. Re6 {[%emt 0:00:05]} Nd4 {[%emt 0:00:02]} 33. Be8+ {[%emt 0:01:19]} Kg8 {[%emt 0:00:02]} 34. f6 {[%emt 0:00:01]} Rg3 {[%emt 0:00:06]} 35. f7+ {[%emt 0:01:00]} Kh7 {[%emt 0:00:01]} 36. f8=Q {[%emt 0:00:07]} Bxf8 {[%emt 0:00:08]} 37. Nxf8+ {[%emt 0:00:02]} Kg7 {[%emt 0:00:04]} 38. Rg6+ {[%emt 0:00:13]} Rxg6 {[%emt 0:00:03]} 39. Nxg6 {[%emt 0:00:01]} Re2 {[%emt 0:00:05]} 40. Rf7+ {[%emt 0:00:14]} Kh6 {[%emt 0:00:07]} 41. Re7 {[%emt 0:00:08]} Rf2 {[%emt 0:00:05]} 42. Nh4 {[%emt 0:00:22]} Kg5 {[%emt 0:00:08]} 43. Re4 {[%emt 0:00:29]} Ne2 {[%emt 0:00:06]} 44. Nf3+ {[%emt 0:00:02]} Kf5 {[%emt 0:00:05]} 45. Rxe2 {[%emt 0:00:02]} Rxe2 {[%emt 0:00:00]} 46. Nd4+ {[%emt 0:00:01]} Ke5 {[%emt 0:00:08]} 47. Nxe2 {[%emt 0:00:02]} Kxd5 {[%emt 0:00:01]} 48. b5 {[%emt 0:00:04]} 1-0

[Event "Wuerttemberg Rapid Teams 2024"]
[Site "B?blingen, Germany"]
[Date "2024.04.13"]
[Round "9.4"]
[White "Geshnizjani, Ramin"]
[Black "Junesch, Gerhard"]
[Result "0-1"]
[ECO "B12"]
[WhiteElo "2137"]
[BlackElo "2267"]
[Annotator "RC"]
[PlyCount "53"]
[EventDate "2024.04.13"]
[EventType "team-tourn"]
[SourceTitle "playchess.com"]
[Source "ChessBase"]
[SourceQuality "1"]
[TimeControl "900+5"]

1. e4 {[%emt 0:00:02]} c6 {[%emt 0:00:13]} 2. d4 {[%emt 0:00:02]} d5 {[%emt 0:00:02]} 3. e5 {[%emt 0:00:03]} Bf5 {[%emt 0:00:05]} 4. c4 {[%emt 0:00:04]} e6 {[%emt 0:00:03]} 5. Nc3 {[%emt 0:00:06]} Ne7 {[%emt 0:00:04]} 6. h3 {[%emt 0:00:05]} Nd7 {[%emt 0:00:17]} 7. Nf3 {[%emt 0:00:14]} dxc4 {[%emt 0:00:17]} 8. Bxc4 {[%emt 0:00:02]} Nb6 {[%emt 0:00:06]} 9. Bb3 {[%emt 0:00:10]} Bg6 {[%emt 0:01:17]} 10. O-O {[%emt 0:01:54]} Nf5 {[%emt 0:00:26]} 11. Bg5 {[%emt 0:01:08]} Be7 {[%emt 0:00:20]} 12. Bxe7 {[%emt 0:00:25]} Qxe7 {[%emt 0:00:18]} 13. Qe2 {[%emt 0:00:36]} Rd8 {[%emt 0:00:24]} 14. Rfd1 {[%emt 0:00:06]} O-O {[%emt 0:00:06]} 15. Ne4 {[%emt 0:00:09]} Nh4 {[%emt 0:02:19]} 16. Nf6+ {[%emt 0:01:57]} gxf6 {[%emt 0:00:12]} 17. Nxh4 {[%emt 0:00:01]} fxe5 {[%emt 0:00:24]} 18. Nxg6 {[%emt 0:00:05]} hxg6 {[%emt 0:00:21]} 19. Qxe5 {[%emt 0:03:13]} Nd5 {[%emt 0:01:27]} 20. Rd3 {[%emt 0:01:06]} Qd6 {[%emt 0:01:37]} 21. Rad1 {[%emt 0:01:00]} Nf4 {[%emt 0:00:36]} 22. R3d2 {[%emt 0:00:26]} Rd7 {[%emt 0:00:23]} 23. h4 {[%emt 0:00:39]} Rfd8 {[%emt 0:00:19]} 24. Qe4 {[%emt 0:02:17]} Nh5 {[%emt 0:01:17]} 25. Rd3 {[%emt 0:01:03]} Qf4 {[%emt 0:00:12]} 26. Qxf4 {[%emt 0:00:22]} Nxf4 {[%emt 0:00:01]} 27. Kf1 {[%emt 0:00:30]} 0-1

[Event "Wuerttemberg Rapid Teams 2024"]
[Site "B?blingen, Germany"]
[Date "2024.04.13"]
[Round "9.5"]
[White "Fischer, Andre"]
[Black "Zuferi, Enis"]
[Result "1/2-1/2"]
[ECO "A67"]
[WhiteElo "2248"]
[BlackElo "2406"]
[Annotator "RC"]
[PlyCount "89"]
[EventDate "2024.04.13"]
[EventType "team-tourn"]
[SourceTitle "playchess.com"]
[Source "ChessBase"]
[SourceQuality "1"]
[TimeControl "900+5"]

1. d4 {[%emt 0:00:03]} Nf6 {[%emt 0:00:05]} 2. c4 {[%emt 0:00:01]} e6 {[%emt 0:00:04]} 3. Nc3 {[%emt 0:00:02]} c5 {[%emt 0:00:08]} 4. d5 {[%emt 0:00:01]} exd5 {[%emt 0:00:01]} 5. cxd5 {[%emt 0:00:01]} d6 {[%emt 0:00:01]} 6. e4 {[%emt 0:00:01]} g6 {[%emt 0:00:02]} 7. f4 {[%emt 0:00:01]} Bg7 {[%emt 0:00:04]} 8. Bb5+ {[%emt 0:00:02]} Nfd7 {[%emt 0:00:01]} 9. Be2 {[%emt 0:00:01]} O-O {[%emt 0:00:06]} 10. Nf3 {[%emt 0:00:01]} Re8 {[%emt 0:00:39]} 11. O-O {[%emt 0:00:08]} Na6 {[%emt 0:01:08]} 12. Nb5 {[%emt 0:00:08]} Qb6 {[%emt 0:00:51]} 13. a4 {[%emt 0:03:37]} c4+ {[%emt 0:00:25]} 14. Kh1 {[%emt 0:00:00]} Rxe4 {[%emt 0:00:50]} 15. Nd2 {[%emt 0:00:41]} Re7 {[%emt 0:01:27]} 16. Nxc4 {[%emt 0:00:37]} Qc5 {[%emt 0:00:11]} 17. Ncxd6 {[%emt 0:02:40]} Nf6 {[%emt 0:00:30]} 18. Bf3 {[%emt 0:02:52]} Nb4 {[%emt 0:01:17]} 19. Nxc8 {[%emt 0:01:51]} Rxc8 {[%emt 0:00:01]} 20. d6 {[%emt 0:00:01]} Rd7 {[%emt 0:00:20]} 21. Bd2 {[%emt 0:00:06]} Nd3 {[%emt 0:00:44]} 22. Qe2 {[%emt 0:00:01]} Qc2 {[%emt 0:00:23]} 23. Bc3 {[%emt 0:00:58]} Qxe2 24. Bxe2 {[%emt 0:00:00]} Nc5 {[%emt 0:00:48]} 25. Nxa7 {[%emt 0:00:03]} Ra8 {[%emt 0:00:16]} 26. Nb5 {[%emt 0:00:04]} Nfe4 {[%emt 0:00:40]} 27. Bxg7 {[%emt 0:01:47]} Kxg7 {[%emt 0:00:01]} 28. Kg1 {[%emt 0:00:55]} Rxa4 {[%emt 0:01:09]} 29. Rxa4 {[%emt 0:00:18]} Nxa4 {[%emt 0:00:01]} 30. Rd1 {[%emt 0:00:01]} f5 {[%emt 0:00:37]} 31. Rc1 {[%emt 0:00:24]} Kf6 {[%emt 0:01:21]} 32. Rc7 {[%emt 0:00:04]} Nb6 {[%emt 0:00:30]} 33. Rxd7 {[%emt 0:00:09]} Nxd7 {[%emt 0:00:01]} 34. Bc4 {[%emt 0:00:02]} h6 {[%emt 0:01:12]} 35. Bd5 {[%emt 0:00:02]} b6 {[%emt 0:00:09]} 36. Kf1 {[%emt 0:00:06]} g5 {[%emt 0:00:16]} 37. fxg5+ {[%emt 0:00:01]} hxg5 {[%emt 0:00:01]} 38. Ke2 {[%emt 0:00:04]} Ke5 {[%emt 0:00:20]} 39. Bc6 {[%emt 0:00:04]} Ke6 {[%emt 0:01:07]} 40. Ke3 {[%emt 0:00:10]} Nxd6 {[%emt 0:00:17]} 41. Nc7+ {[%emt 0:00:09]} Ke7 {[%emt 0:00:04]} 42. Nd5+ {[%emt 0:00:01]} Ke6 {[%emt 0:00:02]} 43. Nc7+ {[%emt 0:00:12]} Ke7 {[%emt 0:00:01]} 44. Nd5+ {[%emt 0:00:01]} Ke6 {[%emt 0:00:01]} 45. Nc7+ {[%emt 0:00:01]} 1/2-1/2

[Event "Wuerttemberg Rapid Teams 2024"]
[Site "B?blingen, Germany"]
[Date "2024.04.13"]
[Round "9.6"]
[White "Weiss, Oliver"]
[Black "Huber, Philipp"]
[Result "0-1"]
[ECO "A48"]
[WhiteElo "2220"]
[BlackElo "2306"]
[Annotator "RC"]
[PlyCount "92"]
[EventDate "2024.04.13"]
[EventType "team-tourn"]
[SourceTitle "playchess.com"]
[Source "ChessBase"]
[SourceQuality "1"]
[TimeControl "900+5"]

1. d4 {[%emt 0:00:01]} Nf6 {[%emt 0:00:01]} 2. Bf4 {[%emt 0:00:03]} d6 {[%emt 0:00:02]} 3. e3 {[%emt 0:00:08]} Nbd7 {[%emt 0:00:14]} 4. Nf3 {[%emt 0:00:19]} c6 {[%emt 0:00:12]} 5. h3 {[%emt 0:00:21]} g6 {[%emt 0:00:30]} 6. Be2 {[%emt 0:00:06]} Bg7 {[%emt 0:00:03]} 7. O-O {[%emt 0:00:04]} O-O {[%emt 0:00:02]} 8. c4 {[%emt 0:00:07]} Ne4 {[%emt 0:00:10]} 9. Qc2 {[%emt 0:00:19]} d5 {[%emt 0:00:13]} 10. cxd5 {[%emt 0:00:28]} cxd5 {[%emt 0:00:02]} 11. Nc3 {[%emt 0:00:10]} Nxc3 {[%emt 0:00:10]} 12. Qxc3 {[%emt 0:00:38]} Nf6 {[%emt 0:00:05]} 13. Rfc1 {[%emt 0:00:15]} Ne8 {[%emt 0:01:12]} 14. Qb3 {[%emt 0:01:53]} b6 {[%emt 0:02:56]} 15. Rc3 {[%emt 0:00:27]} h6 {[%emt 0:00:30]} 16. Rac1 {[%emt 0:00:20]} Be6 {[%emt 0:00:02]} 17. Ba6 {[%emt 0:00:38]} Nd6 {[%emt 0:00:06]} 18. Ne5 {[%emt 0:00:33]} Bxe5 {[%emt 0:00:55]} 19. Bxe5 {[%emt 0:00:38]} Nc4 {[%emt 0:00:03]} 20. Bg3 {[%emt 0:00:20]} Nd2 {[%emt 0:00:56]} 21. Qb4 {[%emt 0:02:19]} Ne4 {[%emt 0:00:05]} 22. Bc7 {[%emt 0:00:03]} Qe8 {[%emt 0:00:07]} 23. R3c2 {[%emt 0:00:25]} Bc8 {[%emt 0:00:11]} 24. Bd3 {[%emt 0:00:39]} Bf5 {[%emt 0:00:28]} 25. Qb3 {[%emt 0:00:41]} Qd7 {[%emt 0:00:16]} 26. Bf4 {[%emt 0:00:23]} g5 {[%emt 0:00:02]} 27. Rc7 {[%emt 0:00:09]} Rac8 {[%emt 0:01:33]} 28. Be5 {[%emt 0:01:45]} Rxc7 {[%emt 0:00:02]} 29. Rxc7 {[%emt 0:00:02]} Qe6 {[%emt 0:00:02]} 30. Rxa7 {[%emt 0:00:26]} Rc8 {[%emt 0:00:13]} 31. Rc7 {[%emt 0:00:03]} Rxc7 {[%emt 0:00:31]} 32. Bxc7 {[%emt 0:00:02]} Qc6 {[%emt 0:00:01]} 33. Qc2 {[%emt 0:00:37]} Qe6 {[%emt 0:00:18]} 34. b4 {[%emt 0:01:16]} b5 {[%emt 0:00:06]} 35. Qc1 {[%emt 0:00:36]} Qc8 {[%emt 0:00:34]} 36. Bxb5 {[%emt 0:00:20]} Nd6 {[%emt 0:00:02]} 37. Ba4 {[%emt 0:00:11]} Nc4 {[%emt 0:00:06]} 38. Bg3 {[%emt 0:00:06]} Bd3 {[%emt 0:00:22]} 39. Qc3 {[%emt 0:00:04]} Qf5 {[%emt 0:00:00]} 40. Bb3 {[%emt 0:00:07]} Be2 {[%emt 0:00:16]} 41. Bxc4 {[%emt 0:00:09]} dxc4 {[%emt 0:00:06]} 42. a4 {[%emt 0:00:05]} Qb1+ {[%emt 0:00:10]} 43. Kh2 {[%emt 0:00:02]} Qb3 {[%emt 0:00:12]} 44. Qc1 {[%emt 0:00:12]} c3 {[%emt 0:00:05]} 45. f4 {[%emt 0:00:09]} Qb2 {[%emt 0:00:11]} 46. Qe1 {[%emt 0:00:04]} Bf3 {[%emt 0:00:27]} 0-1

[Event "Wuerttemberg Rapid Teams 2024"]
[Site "B?blingen, Germany"]
[Date "2024.04.13"]
[Round "9.7"]
[White "Wunder, Niklas"]
[Black "Degenhard, Simon"]
[Result "1-0"]
[ECO "A33"]
[WhiteElo "2071"]
[BlackElo "2204"]
[Annotator "RC"]
[PlyCount "77"]
[EventDate "2024.04.13"]
[EventType "team-tourn"]
[SourceTitle "playchess.com"]
[Source "ChessBase"]
[SourceQuality "1"]
[TimeControl "900+5"]

1. c4 {[%emt 0:00:03]} c5 {[%emt 0:00:02]} 2. Nf3 {[%emt 0:00:01]} Nf6 {[%emt 0:00:01]} 3. d4 {[%emt 0:00:01]} cxd4 {[%emt 0:00:02]} 4. Nxd4 {[%emt 0:00:01]} Nc6 {[%emt 0:00:04]} 5. Nc3 {[%emt 0:00:02]} e6 {[%emt 0:00:09]} 6. a3 {[%emt 0:00:03]} Bc5 {[%emt 0:00:41]} 7. e3 {[%emt 0:00:23]} O-O {[%emt 0:00:48]} 8. b4 {[%emt 0:00:29]} Bb6 {[%emt 0:00:23]} 9. c5 {[%emt 0:00:43]} Bc7 {[%emt 0:00:05]} 10. Ndb5 {[%emt 0:00:23]} Be5 {[%emt 0:01:13]} 11. Bb2 {[%emt 0:02:54]} d5 {[%emt 0:00:31]} 12. cxd6 {[%emt 0:01:52]} a6 {[%emt 0:00:09]} 13. f4 {[%emt 0:01:08]} axb5 {[%emt 0:00:33]} 14. fxe5 {[%emt 0:00:04]} Nxe5 {[%emt 0:00:06]} 15. Nxb5 {[%emt 0:00:35]} Nfg4 {[%emt 0:00:26]} 16. Bxe5 {[%emt 0:01:39]} Nxe5 {[%emt 0:00:06]} 17. Qd4 {[%emt 0:00:54]} Qf6 {[%emt 0:01:04]} 18. Be2 {[%emt 0:00:23]} Bd7 {[%emt 0:00:56]} 19. Rf1 {[%emt 0:00:01]} Qg5 {[%emt 0:00:36]} 20. Qf4 {[%emt 0:00:08]} Qxf4 {[%emt 0:00:47]} 21. exf4 {[%emt 0:00:02]} Ng6 {[%emt 0:00:14]} 22. g3 {[%emt 0:00:44]} Rfd8 {[%emt 0:00:18]} 23. Nc7 {[%emt 0:00:15]} Rac8 {[%emt 0:00:23]} 24. Kf2 {[%emt 0:00:02]} Bc6 {[%emt 0:00:41]} 25. Rfd1 {[%emt 0:00:08]} Rd7 {[%emt 0:00:22]} 26. Rac1 {[%emt 0:00:34]} Rcd8 {[%emt 0:00:23]} 27. b5 {[%emt 0:00:48]} Bd5 {[%emt 0:02:35]} 28. Nxd5 {[%emt 0:00:02]} exd5 {[%emt 0:00:01]} 29. Rxd5 {[%emt 0:00:02]} Rxd6 {[%emt 0:00:02]} 30. Rxd6 {[%emt 0:00:03]} Rxd6 {[%emt 0:00:01]} 31. Rc8+ {[%emt 0:00:01]} Nf8 {[%emt 0:00:01]} 32. a4 {[%emt 0:00:16]} g6 {[%emt 0:00:47]} 33. a5 {[%emt 0:00:06]} Kg7 {[%emt 0:00:08]} 34. a6 {[%emt 0:00:07]} bxa6 {[%emt 0:00:17]} 35. bxa6 {[%emt 0:00:01]} Nd7 {[%emt 0:00:19]} 36. Rd8 {[%emt 0:00:17]} Nc5 {[%emt 0:01:11]} 37. Rxd6 {[%emt 0:00:03]} Ne4+ {[%emt 0:00:01]} 38. Ke3 {[%emt 0:00:01]} Nxd6 {[%emt 0:00:01]} 39. a7 {[%emt 0:00:02]} 1-0

[Event "Wuerttemberg Rapid Teams 2024"]
[Site "B?blingen, Germany"]
[Date "2024.04.13"]
[Round "9.8"]
[White "Sokratov, Stanislav"]
[Black "Tschlatscher, Thomas"]
[Result "0-1"]
[ECO "D02"]
[WhiteElo "2146"]
[BlackElo "2217"]
[Annotator "RC"]
[PlyCount "59"]
[EventDate "2024.04.13"]
[EventType "team-tourn"]
[SourceTitle "playchess.com"]
[Source "ChessBase"]
[SourceQuality "1"]
[TimeControl "900+5"]

1. d4 {[%emt 0:00:01]} Nf6 {[%emt 0:00:02]} 2. Bf4 {[%emt 0:00:02]} d5 {[%emt 0:00:15]} 3. e3 {[%emt 0:00:09]} c5 {[%emt 0:00:22]} 4. Nf3 {[%emt 0:00:03]} Nc6 {[%emt 0:00:07]} 5. Nbd2 {[%emt 0:00:02]} e6 {[%emt 0:00:06]} 6. c3 {[%emt 0:00:12]} Bd6 {[%emt 0:00:12]} 7. Bg3 {[%emt 0:00:03]} O-O {[%emt 0:00:13]} 8. Bd3 {[%emt 0:00:03]} Qe7 {[%emt 0:00:13]} 9. Ne5 {[%emt 0:00:36]} Bxe5 {[%emt 0:00:03]} 10. dxe5 {[%emt 0:00:02]} Nd7 {[%emt 0:00:02]} 11. Nf3 {[%emt 0:02:36]} f6 {[%emt 0:02:43]} 12. exf6 {[%emt 0:00:26]} Nxf6 {[%emt 0:00:03]} 13. Ne5 {[%emt 0:00:26]} Nxe5 {[%emt 0:01:03]} 14. Bxe5 {[%emt 0:00:02]} Nd7 {[%emt 0:00:02]} 15. Bg3 {[%emt 0:00:51]} e5 {[%emt 0:01:21]} 16. Qh5 {[%emt 0:02:52]} g6 {[%emt 0:00:30]} 17. Qh6 {[%emt 0:00:24]} e4 {[%emt 0:00:25]} 18. Be2 {[%emt 0:00:19]} Ne5 {[%emt 0:04:42]} 19. Rd1 {[%emt 0:01:23]} Bg4 {[%emt 0:02:16]} 20. Bxg4 {[%emt 0:03:24]} Nxg4 {[%emt 0:00:04]} 21. Qh4 {[%emt 0:00:07]} Qxh4 {[%emt 0:01:33]} 22. Bxh4 {[%emt 0:00:01]} Rf5 {[%emt 0:00:02]} 23. O-O {[%emt 0:02:25]} Ne5 {[%emt 0:00:12]} 24. Rxd5 {[%emt 0:00:29]} Nf3+ {[%emt 0:00:01]} 25. gxf3 {[%emt 0:00:01]} Rxd5 {[%emt 0:00:01]} 26. fxe4 {[%emt 0:00:03]} Rd2 {[%emt 0:00:02]} 27. Rb1 {[%emt 0:00:07]} Kf7 {[%emt 0:00:07]} 28. b4 {[%emt 0:00:10]} c4 {[%emt 0:00:04]} 29. a4 {[%emt 0:00:01]} Rc2 {[%emt 0:00:26]} 30. h3 {[%emt 0:00:41]} 0-1